bitfinex/quotes_ETHUSD_20241203
["timestamp","ask_amount","ask_price","bid_price","bid_amount"]
[1733186684243,0.55,3639.1,3638.9,0.55]
[1733186684782,0.87729882,3639.4,3638.8,2.65172892]
[1733186684940,0.55,3639.2,3638.8,5.39981892]
[1733186685285,0.55,3639.4,3639.1,2.74793]
[1733186685436,0.46023947,3639.3,3639.1,2.74793]
[1733186685639,0.55,3639.2,3639.1,2.74793]
[1733186685872,0.80568548,3639.2,3639.1,2.74793]
[1733186686685,0.55,3639.1,3638.9,2.74806]
[1733186687188,0.55,3639.4,3639.1,2.74792]
[1733186687346,0.55,3639.2,3639.1,2.74792]
[1733186687752,0.55,3639.5,3638.8,3.52902792]
[1733186687989,0.55,3639.3,3638.8,3.52902792]
[1733186688283,0.55,3639.1,3638.8,6.27710792]
[1733186688849,0.32724476,3639.4,3638.8,6.27710792]
[1733186688850,0.55,3639.3,3638.8,6.27710792]
[1733186689166,0.55,3639.1,3638.8,6.27710792]
[1733186689488,0.55,3639.3,3638.8,3.52902792]
[1733186689651,0.55,3639.1,3638.9,2.74807]
[1733186689989,0.55,3639.3,3638.8,3.52902792]
[1733186690286,0.55,3639.1,3638.8,2.65172892]
[1733186690648,2.7474,3639.8,3638.8,2.65172892]
[1733186690649,1.28643314,3639.4,3638.8,2.65172892]
[1733186690850,0.55,3639.2,3638.8,2.65172892]
[1733186691088,0.55,3638.9,3638.8,2.65172892]
[1733186692447,0.55,3638.9,3638.8,5.39987892]
[1733186692789,0.55,3639.3,3639.0,2.748]
[1733186692950,0.55,3639.1,3639.0,2.748]
[1733186693463,0.32734843,3639.4,3638.9,0.7982]
[1733186693464,0.55,3639.4,3639.2,2.74784]
[1733186693659,0.46036715,3639.3,3639.2,2.74784]
[1733186693883,1.01036715,3639.3,3639.2,5.39956892]
[1733186694086,0.46036624,3639.3,3639.2,5.39956892]
[1733186694876,0.20460677,3639.3,3639.2,5.39956892]
[1733186695076,0.46038111,3639.3,3639.2,5.39956892]
[1733186695301,1.01038111,3639.3,3639.2,5.39956892]
[1733186695697,1.01038111,3639.3,3639.0,2.74798]
[1733186695979,1.01038111,3639.2,3639.0,2.74798]
[1733186696316,0.20460677,3639.1,3639.0,2.74798]
[1733186696519,0.55,3639.4,3639.1,2.74793]
[1733186696704,0.40923895,3639.8,3639.4,2.7477]
[1733186697019,1.10929565,3639.9,3639.7,5.39919892]
[1733186697182,0.46054399,3639.8,3639.3,2.65172892]
[1733186697380,0.46054399,3639.7,3639.3,2.65172892]
[1733186697580,0.20468708,3639.6,3639.4,2.74763]
[1733186697788,0.20469128,3639.5,3639.4,2.74763]
[1733186697988,0.75469128,3639.5,3639.4,2.74763]
[1733186698190,1.01054599,3639.5,3639.4,2.74763]
[1733186698719,0.75469128,3639.5,3639.4,2.74763]
[1733186699318,1.0107116,3639.5,3639.4,2.74763]
[1733186700417,1.01078952,3639.5,3639.4,2.74763]
[1733186700883,0.46078952,3639.5,3639.4,3.61638744]
[1733186701084,0.20469128,3639.5,3639.4,3.61638744]
[1733186701330,0.46085958,3639.5,3639.4,3.61638744]
[1733186701683,0.20469128,3639.5,3639.4,3.61638744]
[1733186701915,0.46084055,3639.5,3639.4,3.61638744]
[1733186702323,0.20469128,3639.5,3639.4,4.44618744]
[1733186702541,0.256219,3640.1,3639.7,2.74747]
[1733186702684,0.78920404,3640.0,3639.9,2.74732]
[1733186703033,0.46122134,3640.0,3639.9,2.74732]
[1733186703217,0.20498919,3640.0,3639.9,2.74732]
[1733186703731,0.25623596,3640.2,3639.8,2.65172892]
[1733186703887,1.46572763,3640.5,3639.5,0.2749]
[1733186703888,0.7674,3640.0,3639.5,2.92662892]
[1733186704225,1.01117259,3639.9,3639.5,0.2749]
[1733186704427,0.55,3639.7,3639.5,0.2749]
[1733186704628,0.7549656,3639.6,3639.5,3.02253]
[1733186704802,0.2049656,3639.6,3639.5,5.67425892]
[1733186706056,0.2049656,3639.6,3639.5,5.39935892]
[1733186706535,0.4611415,3639.6,3639.5,2.65172892]
[1733186706745,0.46112269,3639.6,3639.5,5.39935892]
[1733186706885,0.2049656,3639.6,3639.5,5.39935892]
[1733186707092,0.46116026,3639.6,3639.5,5.39935892]
[1733186707305,0.2049656,3639.6,3639.5,5.39935892]
[1733186707562,0.55,3639.7,3639.5,5.39935892]
[1733186707839,0.20493494,3639.6,3639.5,5.39935892]
[1733186708189,0.75493494,3639.6,3639.5,2.65172892]
[1733186708416,1.0111226,3639.6,3639.5,2.65172892]
[1733186708992,0.55,3639.5,3639.3,2.74776]
[1733186709194,0.25618766,3639.4,3639.3,2.74776]
[1733186709819,0.7377669,3639.9,3639.3,2.74776]
[1733186710039,1.7488653,3639.8,3639.3,2.74776]
[1733186710243,0.55,3639.6,3639.3,2.74776]
[1733186710419,0.4610984,3639.5,3639.3,2.74776]
[1733186710591,0.55,3639.6,3639.2,0.54033545]
[1733186710791,0.55,3639.9,3639.5,5.39935892]
[1733186711028,0.55,3639.7,3639.5,2.65172892]
[1733186711334,1.01110151,3639.6,3639.5,2.65172892]
[1733186712409,1.01110151,3639.6,3639.5,5.39935892]
[1733186713694,1.01110151,3639.6,3639.5,2.65172892]
[1733186715121,0.46110151,3639.6,3639.5,5.39935892]
[1733186715309,0.25617133,3639.6,3639.5,6.26811036]
[1733186715537,0.95976413,3639.9,3639.5,6.26808036]
[1733186715699,1.01097311,3639.8,3639.7,2.74747]
[1733186716401,0.46097311,3639.8,3639.7,3.50117]
[1733186716597,2.56424974,3640.3,3639.7,3.50117]
[1733186716904,2.56424974,3640.3,3639.8,2.74738]
[1733186716905,2.14697511,3640.2,3639.8,2.74738]
[1733186717126,0.46103103,3640.1,3639.8,2.74738]
[1733186717331,1.14199311,3640.3,3639.5,2.65172892]
[1733186717332,0.46103103,3640.0,3639.6,2.74754]
[1733186717534,0.46103103,3639.9,3639.6,2.74754]
[1733186717842,0.2048973,3639.8,3639.7,3.36297689]
[1733186718206,0.55,3640.0,3639.7,0.61556689]
[1733186718406,0.20485834,3639.9,3639.8,2.74738]
[1733186718796,0.55,3640.1,3639.5,5.39929892]
[1733186719001,0.20486194,3640.0,3639.7,2.74741]
[1733186719234,0.7548597,3639.9,3639.5,2.65172892]
[1733186719433,0.55,3640.1,3639.7,2.74747]
[1733186719695,0.55,3639.9,3639.7,2.74747]
[1733186720152,0.20483788,3639.8,3639.7,2.74747]
[1733186720314,0.75483788,3639.8,3639.7,2.74747]
[1733186720698,0.55,3639.7,3639.5,2.65172892]
[1733186721102,0.55,3639.8,3639.5,2.65172892]
[1733186721352,0.55,3639.5,3639.2,0.54033545]
[1733186721839,0.55,3639.3,3639.2,2.74785]
[1733186722142,0.55,3639.6,3639.2,2.74785]
[1733186722302,0.55,3639.4,3639.2,2.74785]
[1733186722499,0.55,3639.3,3639.2,2.74785]
[1733186722699,0.75489828,3639.3,3639.2,2.74785]
[1733186723510,0.75489828,3639.3,3639.1,2.65172892]
[1733186723738,1.3419,3639.2,3638.8,3.28771519]
[1733186724143,0.55,3639.0,3638.8,3.28771519]
[1733186724456,0.20491489,3639.1,3638.8,3.28771519]
[1733186724457,0.55,3639.1,3638.8,0.53962519]
[1733186724623,0.55,3639.1,3637.9,1.0616]
[1733186724624,1.3596,3638.9,3637.9,1.0616]
[1733186724818,0.55,3638.7,3638.2,2.7486]
[1733186725019,0.20487768,3638.6,3638.2,2.7486]
[1733186725223,0.4609719,3638.5,3638.2,2.7486]
[1733186725419,0.55,3638.4,3638.2,2.7486]
[1733186725820,0.55,3638.4,3638.0,2.74874]
[1733186726052,0.55,3638.7,3638.0,2.74874]
[1733186726255,0.55,3638.5,3637.9,0.2747]
[1733186726418,1.02786846,3638.4,3637.6,0.54512316]
[1733186726623,0.55,3638.1,3637.4,5.40089892]
[1733186726857,0.55,3637.9,3637.4,5.40089892]
[1733186727246,0.55,3638.1,3637.4,5.40089892]
[1733186727828,0.55,3637.9,3637.4,5.40089892]
[1733186728225,0.75448821,3638.1,3637.4,2.65172892]
[1733186728441,1.3074273,3638.1,3637.2,3.52136]
[1733186728766,0.55,3637.9,3637.2,2.74936]
[1733186728974,0.55,3637.9,3637.3,2.74928]
[1733186729265,0.55,3638.0,3637.3,2.74928]
[1733186729424,0.55,3638.1,3637.3,2.74928]
[1733186729624,0.25526232,3638.0,3637.3,2.74928]
[1733186729867,0.7621,3637.8,3637.1,2.65172892]
[1733186730179,0.55,3637.7,3637.2,2.74935]
[1733186731125,0.55,3637.7,3637.3,0.56080831]
[1733186731761,0.55,3637.5,3636.6,2.7498]
[1733186731976,0.55,3637.3,3636.5,0.55354794]
[1733186732204,0.55,3637.1,3636.5,0.55354794]
[1733186732604,0.25471906,3637.2,3636.5,0.55354794]
[1733186732761,0.55,3637.1,3636.6,2.74981]
[1733186732965,0.55,3637.2,3636.6,2.74981]
[1733186733373,0.55,3637.3,3636.6,2.74981]
[1733186734212,0.55,3637.3,3636.7,2.74974]
[1733186735505,0.55,3637.3,3636.5,3.30341794]
[1733186736181,0.55,3637.1,3636.5,0.55354794]
[1733186736702,0.55,3637.1,3636.5,3.30343794]
[1733186737364,0.55,3637.1,3636.5,0.55354794]
[1733186737565,0.7797,3637.8,3637.0,2.65172892]
[1733186738316,0.7797,3637.8,3637.4,2.74919]
[1733186738469,0.7797,3637.8,3637.5,2.74906]
[1733186738868,0.7797,3637.8,3637.3,3.21571211]
[1733186739901,0.55,3637.7,3637.6,2.74906]
[1733186740689,0.55,3637.7,3637.4,2.74914]
[1733186741184,0.55,3637.7,3637.5,0.67645521]
[1733186741505,0.55,3637.7,3637.2,2.74934]
[1733186741710,0.55,3637.5,3636.9,2.74956]
[1733186742478,0.55,3637.5,3636.6,2.74975]
[1733186742734,0.55,3637.4,3636.6,0.55659167]
[1733186743209,0.55,3637.2,3636.6,3.30639167]
[1733186743395,0.55,3637.2,3636.6,2.7498]
[1733186744699,0.55,3637.2,3636.7,2.74973]
[1733186744904,0.55,3637.2,3636.8,2.74966]
[1733186745981,0.55,3637.2,3636.9,2.74958]
[1733186746316,0.55,3637.2,3637.1,2.74944]
[1733186746679,0.7901,3637.6,3636.8,5.40132892]
[1733186746882,0.7901,3637.6,3637.2,2.65172892]
[1733186747202,0.7901,3637.6,3637.3,2.74926]
[1733186747626,0.7901,3637.6,3637.5,2.74914]
[1733186747781,0.8166,3637.9,3637.2,5.40103892]
[1733186747974,1.07080437,3637.9,3637.4,2.74917]
[1733186748334,0.25420437,3637.8,3637.4,2.74917]
[1733186748478,0.25420437,3637.7,3637.0,2.74948]
[1733186748680,0.25420437,3637.6,3637.1,2.74943]
[1733186748874,0.55,3637.4,3637.1,2.74943]
[1733186749104,0.55,3637.4,3636.9,0.61722289]
[1733186749105,0.55,3637.7,3636.9,0.61722289]
[1733186749288,0.55,3637.5,3637.1,2.74936]
[1733186749589,0.55,3637.5,3636.9,0.61722289]
[1733186749795,0.55,3637.5,3637.0,3.42846518]
[1733186750115,0.55,3637.8,3637.4,2.74921]
[1733186750273,0.55,3637.6,3637.4,2.74921]
[1733186750480,0.80464993,3637.5,3637.4,2.74921]
[1733186751178,0.25483872,3637.5,3637.4,2.74921]
[1733186751417,0.80483872,3637.5,3637.4,2.74921]
[1733186751796,0.55,3637.4,3637.3,2.74929]
[1733186751999,0.80483872,3637.4,3637.3,2.74929]
[1733186752184,1.00884858,3637.4,3637.3,2.74929]
[1733186752605,1.00900096,3637.4,3637.3,2.74929]
[1733186752784,1.00900096,3637.4,3637.3,3.35728741]
[1733186752984,0.25483872,3637.4,3637.3,4.10968741]
[1733186753422,0.32665958,3637.8,3637.3,4.10968741]
[1733186753590,0.86876894,3637.7,3637.3,4.10968741]
[1733186753799,0.32665958,3637.9,3637.7,2.74894]
[1733186753996,1.2187312,3638.2,3637.7,2.74894]
[1733186753997,1.19543746,3637.8,3637.7,2.74894]
[1733186754324,0.794,3638.2,3638.0,2.74876]
[1733186754500,1.19688435,3638.1,3638.0,2.74876]
[1733186754824,1.19688435,3638.1,3638.0,5.40048892]
[1733186755026,0.78771215,3638.1,3638.0,5.40048892]
[1733186756119,1.01046702,3638.1,3638.0,5.40048892]
[1733186757426,1.01046702,3638.1,3638.0,7.03113181]
[1733186757626,0.20471599,3638.1,3638.0,7.03113181]
[1733186757796,1.28714538,3638.5,3638.4,2.74841]
[1733186757997,1.19781324,3638.5,3638.4,5.40013892]
[1733186758205,0.20474127,3638.5,3638.4,5.40013892]
[1733186758398,0.6991757,3639.4,3638.4,5.40013892]
[1733186758399,0.40954915,3639.0,3638.9,2.74808]
[1733186758623,1.19747601,3639.0,3638.9,2.74808]
[1733186759426,0.46047677,3639.0,3638.9,2.74808]
[1733186760383,0.73693558,3639.5,3639.4,2.7477]
[1733186760587,0.78776213,3639.5,3639.4,2.7477]
[1733186760821,0.4603757,3639.5,3639.4,2.7477]
[1733186761125,0.8013,3639.8,3639.7,2.74747]
[1733186761420,0.27295465,3640.4,3639.4,2.7477]
[1733186761421,1.14179204,3640.1,3639.8,2.74737]
[1733186761625,0.45983789,3640.0,3639.9,2.74732]
[1733186761787,0.45982914,3640.0,3639.9,2.74732]
[1733186761988,0.45982914,3640.0,3639.9,5.39904892]
[1733186762427,0.45982914,3640.2,3640.1,2.74717]
[1733186762630,0.20436432,3640.2,3640.1,2.74717]
[1733186762803,0.45982914,3640.2,3639.9,2.65172892]
[1733186762999,0.8093,3640.5,3639.9,2.65172892]
[1733186763000,0.45982914,3640.1,3639.9,2.65172892]
[1733186763206,0.55,3640.0,3639.9,5.39904892]
[1733186763403,1.00950594,3640.3,3639.9,5.39904892]
[1733186763616,0.55,3640.1,3639.9,5.39904892]
[1733186763790,0.75404112,3640.1,3639.9,5.39904892]
[1733186764124,0.55,3640.1,3639.9,5.39904892]
[1733186764330,0.55,3640.2,3639.9,2.65172892]
[1733186764518,0.75404112,3640.4,3640.1,2.74712]
[1733186765313,0.75404112,3640.4,3640.0,2.74724]
[1733186765490,0.55,3640.4,3639.8,2.7474]
[1733186765917,0.55,3640.4,3639.9,2.74731]
[1733186766689,0.55,3640.4,3640.0,2.74724]
[1733186768735,1.27121586,3640.8,3640.2,2.65172892]
[1733186768891,0.813,3640.8,3640.5,2.65172892]
[1733186769751,0.8166,3641.1,3640.5,2.65172892]
[1733186769955,0.45821586,3641.6,3641.0,2.65172892]
[1733186770114,2.04489174,3642.0,3641.5,2.65172892]
[1733186770115,0.8166,3642.0,3641.5,2.65172892]
[1733186770319,0.8131,3642.3,3641.8,2.65172892]
[1733186770546,0.22291044,3642.2,3641.8,2.65172892]
[1733186770752,0.8131,3642.8,3642.1,2.65172892]
[1733186770958,0.20371206,3642.7,3642.6,2.65172892]
[1733186771116,0.45835213,3643.1,3642.3,2.65172892]
[1733186771321,0.45835213,3643.1,3642.0,2.65172892]
[1733186771322,2.74493,3643.1,3642.0,2.65172892]
[1733186771558,0.86035034,3643.0,3642.0,2.65172892]
[1733186771852,0.8167,3643.2,3642.2,2.74557]
[1733186772053,1.2746106,3643.2,3642.2,2.74557]
[1733186772621,0.55,3643.1,3642.2,2.74557]
[1733186773899,0.55,3643.1,3642.0,5.95146294]
[1733186774083,0.55,3643.1,3642.2,2.74559]
[1733186774399,0.55,3642.9,3642.5,2.65172892]
[1733186774552,0.55,3643.1,3642.5,2.65172892]
[1733186774750,0.8167,3643.2,3642.5,5.39707892]
[1733186774990,0.8167,3643.2,3642.6,2.74527]
[1733186775192,0.7683,3643.6,3642.9,2.65172892]
[1733186775706,0.7683,3643.6,3642.1,0.806]
[1733186775707,0.7683,3643.6,3642.8,2.65172892]
[1733186775907,0.7683,3643.6,3643.1,2.65172892]
[1733186776201,0.7683,3643.6,3643.1,5.39660892]
[1733186776518,0.96636188,3644.1,3643.8,2.74436]
[1733186776801,0.7635,3644.6,3644.0,2.65172892]
[1733186777006,0.7635,3644.6,3644.3,2.65172892]
[1733186777324,0.96615186,3645.2,3644.3,2.65172892]
[1733186777469,0.7635,3645.2,3644.6,2.65172892]
[1733186777822,0.7635,3645.2,3644.9,2.65172892]
[1733186777963,0.1573694,3645.4,3644.9,2.65172892]
[1733186778174,0.1573694,3645.4,3645.2,2.65172892]
[1733186779570,0.1573694,3645.4,3645.1,2.74337]
[1733186780209,0.55,3645.3,3645.0,5.86504378]
[1733186780450,0.55,3645.3,3645.1,2.74336]
[1733186780654,0.55,3645.3,3645.0,3.12159378]
[1733186781011,0.55,3645.3,3645.2,2.74333]
[1733186781208,0.55,3645.3,3645.0,5.86507378]
[1733186781536,0.55,3645.3,3645.1,2.7434]
[1733186781942,0.55,3645.3,3645.0,5.86505378]
[1733186782313,0.55,3645.3,3645.0,3.12159378]
[1733186782511,0.55,3645.3,3645.0,5.86504378]
[1733186782917,0.55,3645.3,3645.0,3.12159378]
[1733186783160,0.55,3645.1,3644.6,0.54377727]
[1733186783317,0.75285694,3645.1,3644.6,0.54377727]
[1733186783655,0.1573694,3645.4,3644.7,0.7997]
[1733186783854,0.1573694,3645.4,3645.0,3.12159378]
[1733186784269,0.1573694,3645.4,3645.1,0.02742917]
[1733186784447,0.1573694,3645.4,3645.3,2.74325]
[1733186784979,0.1573694,3645.4,3645.2,0.7997]
[1733186785132,0.1573694,3645.4,3645.0,3.12159378]
[1733186785333,0.1573694,3645.4,3645.2,0.53982372]
[1733186785532,0.55,3645.3,3644.2,3.12159378]
[1733186785965,0.55,3645.1,3644.2,3.12159378]
[1733186786168,0.55,3645.3,3644.2,3.12159378]
[1733186786369,0.55,3644.9,3643.5,0.8034]
[1733186786571,0.55,3644.9,3642.9,0.2]
[1733186786572,0.7694,3644.3,3643.1,1.43328089]
[1733186786772,0.55,3644.2,3643.1,1.43328089]
[1733186786929,3.51341,3644.3,3642.7,1.098059]
[1733186786930,0.55,3644.0,3642.7,0.8164]
[1733186787581,0.55,3643.7,3642.7,0.8164]
[1733186787908,0.20168765,3644.6,3641.9,2.74576]
[1733186787909,3.29475,3643.4,3642.2,0.7663]
[1733186788069,0.55,3643.4,3642.2,3.51188]
[1733186788231,0.55,3643.5,3642.2,4.05557836]
[1733186788432,0.55,3643.3,3642.2,1.7155562]
[1733186788675,0.55,3643.3,3642.0,2.74573]
[1733186788830,0.55,3643.5,3642.1,3.12159378]
[1733186789039,0.55,3643.5,3642.4,2.74542]
[1733186789231,0.55,3643.5,3642.5,0.02744782]
[1733186789461,0.55,3643.5,3642.4,2.74539]
[1733186789643,0.55,3643.5,3642.5,3.34732682]
[1733186789845,0.55,3643.5,3642.5,3.319879]
[1733186790382,2.7447,3643.4,3642.1,3.12159378]
[1733186790584,0.55,3643.3,3642.1,3.12159378]
[1733186790935,0.55,3643.3,3642.1,5.86722378]
[1733186791135,0.55,3643.5,3642.2,2.74558]
[1733186791367,0.55,3643.5,3642.3,0.64255252]
[1733186792048,0.55,3643.5,3642.4,2.74543]
[1733186792551,0.55,3643.5,3642.3,0.64255252]
[1733186792746,2.74478,3643.3,3642.3,0.64255252]
[1733186792956,0.55,3643.2,3642.3,0.64255252]
[1733186793375,0.55,3643.2,3641.8,0.7817]
[1733186793376,2.74499,3643.0,3641.8,0.7817]
[1733186793548,0.55,3643.0,3641.8,0.7817]
[1733186793745,3.29499,3643.0,3641.8,0.7817]
[1733186793949,0.55,3643.0,3641.8,0.7817]
[1733186794153,0.55,3643.0,3641.7,3.12159378]
[1733186794450,1.18515199,3643.0,3641.8,0.36835792]
[1733186794781,0.55,3643.0,3641.9,2.7458]
[1733186795488,3.4975909,3643.0,3641.8,0.36835792]
[1733186795673,0.779,3642.4,3641.4,0.8029]
[1733186795875,0.779,3642.4,3641.7,5.86751378]
[1733186796058,0.779,3642.4,3641.4,3.30542381]
[1733186796262,0.779,3642.4,3641.5,3.38880176]
[1733186797061,0.779,3642.4,3641.5,0.64270176]
[1733186797384,0.779,3642.4,3641.6,2.74603]
[1733186797747,0.779,3642.4,3641.1,2.74641]
[1733186797748,0.55,3642.3,3641.1,2.74641]
[1733186797946,3.29551,3642.3,3641.1,2.74641]
[1733186798151,0.55,3642.3,3641.2,0.58680038]
[1733186798359,0.779,3642.4,3641.2,0.58680038]
[1733186798360,0.55,3642.1,3641.3,2.74626]
[1733186798557,0.55,3642.1,3641.3,5.86785378]
[1733186798790,0.45800959,3642.3,3641.7,3.12159378]
[1733186799087,0.779,3642.4,3641.9,2.74581]
[1733186799305,0.779,3642.4,3641.9,3.20916708]
[1733186799477,0.81,3642.8,3642.0,0.02745417]
[1733186799678,0.45843625,3642.7,3641.9,0.46335708]
[1733186799865,0.81,3642.8,3641.9,0.46335708]
[1733186799866,0.45843625,3642.6,3641.9,0.46335708]
[1733186800202,0.81,3642.8,3641.9,0.46335708]
[1733186800457,0.45848999,3642.7,3642.0,0.02745298]
[1733186800566,0.45848999,3642.6,3641.8,2.74583]
[1733186800767,0.20377333,3642.5,3641.9,0.58674238]
[1733186801107,0.55,3642.7,3641.7,3.12159378]
[1733186801265,0.45851627,3642.6,3641.8,2.74587]
[1733186801464,0.45851627,3642.5,3641.8,2.74587]
[1733186801701,0.45851627,3642.4,3641.8,2.74587]
[1733186801902,0.25476056,3642.3,3641.5,0.55275208]
[1733186802075,0.73361332,3642.6,3641.6,1.02261459]
[1733186802272,1.19218132,3642.5,3641.6,2.74602]
[1733186802474,0.458568,3642.4,3641.5,0.55275208]
[1733186802809,0.458568,3642.3,3641.7,2.74596]
[1733186803027,1.761268,3642.2,3641.5,0.55275208]
[1733186803230,0.55,3641.8,3640.6,0.7938]
[1733186803393,0.55,3641.8,3640.9,0.53978622]
[1733186803589,0.55,3641.8,3640.9,3.28634622]
[1733186803803,0.78477981,3641.7,3640.9,0.53978622]
[1733186804087,1.2247556,3641.6,3640.5,2.7468]
[1733186804432,1.0086556,3641.5,3640.5,2.7468]
[1733186804722,0.55,3641.3,3640.8,2.74657]
[1733186804928,0.55,3641.3,3640.7,2.74666]
[1733186805223,0.55,3641.5,3640.8,0.02746336]
[1733186805402,0.55,3641.3,3640.4,0.02746336]
[1733186805607,0.55,3641.3,3640.4,0.74849224]
[1733186805919,0.55,3641.3,3640.0,2.74724]
[1733186806122,0.55,3641.1,3639.7,6.64774378]
[1733186806304,0.55,3640.9,3639.8,2.7474]
[1733186806506,0.55,3640.9,3639.9,2.74732]
[1733186806833,0.8226,3640.3,3639.0,0.7787]
[1733186807037,3.29717,3640.2,3639.0,2.748]
[1733186807342,0.55,3640.0,3638.9,0.55243123]
[1733186807491,0.55,3639.8,3638.9,0.55243123]
[1733186807697,0.55,3639.8,3639.1,2.74792]
[1733186808006,0.55,3639.8,3638.7,2.74819]
[1733186808207,0.55,3639.8,3639.2,2.74784]
[1733186808839,0.55,3639.8,3638.8,0.75582996]
[1733186809137,0.8226,3639.9,3638.9,3.14906878]
[1733186809333,0.8226,3639.9,3639.0,2.748]
[1733186809506,0.8226,3639.9,3638.9,3.12159378]
[1733186809707,0.8226,3639.9,3639.4,2.74765]
[1733186810297,0.8226,3639.9,3639.0,3.18958436]
[1733186810522,0.8226,3639.9,3639.4,2.74763]
[1733186810864,0.8226,3639.9,3639.8,2.7474]
[1733186811169,0.8226,3639.9,3639.3,3.12159378]
[1733186811170,0.8226,3639.9,3639.7,2.74743]
[1733186811376,0.7884,3640.9,3639.3,3.12159378]
[1733186811580,0.353491,3640.8,3639.8,2.74736]
[1733186812071,1.24555665,3640.9,3639.7,3.12159378]
[1733186812380,0.7884,3641.4,3641.2,2.74633]
[1733186812677,0.7884,3641.4,3640.1,3.94949378]
[1733186813000,0.7884,3641.4,3640.6,2.74675]
[1733186813270,0.7884,3641.4,3640.1,3.94949378]
[1733186813452,0.7884,3641.4,3640.2,0.45026883]
[1733186813773,0.7884,3641.4,3640.6,2.74679]
[1733186813943,0.55,3641.3,3640.6,2.74679]
[1733186814281,0.55,3641.3,3640.3,2.74702]
[1733186814438,0.55,3641.3,3640.8,2.74663]
[1733186815370,0.45758646,3641.7,3641.5,2.74611]
[1733186815569,0.45758646,3641.7,3641.0,2.74649]
[1733186815769,1.02827176,3641.9,3641.3,2.74626]
[1733186815981,0.8249,3641.9,3641.3,2.74626]
[1733186816838,0.8249,3641.9,3641.4,2.74619]
[1733186817481,0.73446676,3642.4,3641.9,2.74574]
[1733186817482,0.8249,3642.3,3641.9,2.74574]
[1733186817679,0.8249,3642.3,3641.5,2.74612]
[1733186818404,0.8249,3642.3,3641.9,2.74575]
[1733186818605,0.8249,3642.3,3642.0,2.7457]
[1733186818812,0.8249,3642.3,3641.2,0.8049]
[1733186818813,0.55,3642.2,3641.1,0.55326865]
[1733186818967,0.55,3642.2,3641.8,2.74588]
[1733186819161,0.55,3642.2,3641.6,2.74604]
[1733186819569,0.55,3642.2,3641.3,5.86786378]
[1733186819570,0.55,3642.2,3641.7,2.74594]
[1733186819997,0.55,3642.2,3641.5,2.7461]
[1733186820204,0.68749,3642.2,3641.5,2.7461]
[1733186820580,0.55,3642.0,3641.7,2.74596]
[1733186820780,0.55,3642.0,3641.8,2.74588]
[1733186820993,0.2041703,3642.2,3642.0,2.74573]
[1733186821214,0.8249,3642.3,3642.1,2.74566]
[1733186821592,1.3749,3642.3,3642.2,2.74559]
[1733186821908,1.63012534,3642.3,3642.1,2.74565]
[1733186822124,1.3749,3642.3,3642.1,2.74565]
[1733186822674,0.40823135,3642.8,3642.7,2.74521]
[1733186822875,3.2046704,3642.8,3641.3,3.92919378]
[1733186823077,0.7979,3642.6,3641.3,3.12159378]
[1733186823306,0.4595204,3642.5,3641.5,2.74604]
[1733186823577,0.4595204,3642.4,3641.5,0.80556316]
[1733186823771,0.7979,3642.6,3641.9,2.74581]
[1733186824016,0.55,3642.4,3641.6,2.74599]
[1733186824184,0.55,3642.5,3641.5,0.80556316]
[1733186824384,0.55,3642.3,3641.5,0.80556316]
[1733186824876,1.00971264,3642.5,3641.5,0.80556316]
[1733186825072,0.7979,3642.6,3642.0,2.74574]
[1733186825073,0.55,3642.3,3642.0,2.74574]
[1733186825321,0.55,3642.3,3641.7,0.54476931]
[1733186825649,0.25544504,3642.2,3641.9,2.74575]
[1733186825854,0.25544504,3642.1,3641.9,2.74575]
[1733186826055,0.40871561,3642.3,3642.0,2.74574]
[1733186826212,0.25546697,3642.2,3642.0,2.74574]
[1733186826417,0.25546697,3642.1,3641.8,2.74588]
[1733186826624,0.55,3642.3,3641.9,2.74581]
[1733186826836,0.255464,3642.2,3642.1,2.74566]
[1733186827049,0.255464,3642.2,3642.1,6.41640878]
[1733186827228,0.2043677,3642.8,3642.7,2.74521]
[1733186827436,0.25539669,3642.8,3642.7,2.74521]
[1733186827861,0.25537797,3642.8,3642.3,2.74544]
[1733186828016,0.25537797,3642.7,3642.3,2.74544]
[1733186828217,0.25537962,3642.6,3642.3,0.3294595]
[1733186828422,0.61291815,3643.3,3642.5,2.74536]
[1733186828644,0.86826366,3643.2,3643.0,2.74495]
[1733186828845,0.66395761,3643.1,3643.0,2.74499]
[1733186829045,0.25534551,3643.1,3643.0,2.74499]
[1733186829376,0.25534551,3643.1,3642.8,2.74507]
[1733186829548,0.25534551,3643.0,3642.8,2.74507]
[1733186829874,0.4086121,3643.3,3642.8,2.74507]
[1733186830077,0.25528686,3643.2,3642.8,2.74507]
[1733186830381,0.25528686,3643.1,3642.9,2.74503]
[1733186830576,0.25524844,3643.3,3642.9,2.74503]
[1733186830871,0.7735,3643.4,3642.9,2.74503]
[1733186831079,0.2552403,3643.3,3642.9,2.74503]
[1733186831443,0.7735,3643.4,3642.7,2.74519]
[1733186831761,0.7735,3643.4,3642.2,0.54773598]
[1733186831762,0.55,3643.2,3642.2,0.54773598]
[1733186831945,0.25518112,3643.1,3642.8,2.74513]
[1733186832144,0.55,3642.9,3642.2,0.54773598]
[1733186832376,0.55,3642.7,3641.7,3.88109378]
[1733186832758,0.55,3642.7,3642.1,2.74564]
[1733186833285,0.80518112,3642.7,3642.1,2.74564]
[1733186833640,0.80518112,3642.7,3641.8,0.55077669]
[1733186833938,0.55,3642.7,3641.9,2.74581]
[1733186834163,0.80518112,3642.7,3642.2,2.74558]
[1733186834337,0.8212,3642.8,3642.6,2.74526]
[1733186834543,0.32658508,3643.4,3642.9,2.74506]
[1733186834544,0.25518112,3643.0,3642.9,2.74506]
[1733186834741,0.25518112,3643.3,3643.2,2.74483]
[1733186834974,0.25518112,3643.5,3643.0,0.02744497]